[Event "Live Chess"]
[Site "Chess.com"]
[Date "2023.05.21"]
[Round "-"]
[White "mattihelenius2"]
[Black "GwaryTek"]
[Result "0-1"]
[WhiteElo "491"]
[BlackElo "2061"]
[TimeControl "300"]
[EndTime "5:00:42 PDT"]
[Termination "GwaryTek won by resignation"]

1. d4 {[%clk 0:04:48.6]} 1... c5 {[%clk 0:04:59.9]} 2. e4 {[%clk 0:04:44.9]}
2... cxd4 {[%clk 0:04:59.1]} 3. Qxd4 {[%clk 0:04:43.7]} 3... Nc6 {[%clk
0:04:59]} 4. Qd1 {[%clk 0:04:42.6]} 4... g6 {[%clk 0:04:57.7]} 5. Nc3 {[%clk
0:04:41.8]} 5... Bg7 {[%clk 0:04:57.3]} 6. Bb5 {[%clk 0:04:40.9]} 6... Nf6
{[%clk 0:04:55.5]} 7. Bg5 {[%clk 0:04:39.9]} 7... O-O {[%clk 0:04:54]} 8. f3
{[%clk 0:04:39.1]} 8... Qb6 {[%clk 0:04:51.6]} 9. Nd5 {[%clk 0:04:37]} 9... Qxb5
{[%clk 0:04:47.1]} 10. Nxe7+ {[%clk 0:04:33.1]} 10... Nxe7 {[%clk 0:04:45.1]}
11. Bxf6 {[%clk 0:04:29.3]} 11... Bxf6 {[%clk 0:04:43.1]} 12. Qd3 {[%clk
0:04:24.7]} 12... Qxd3 {[%clk 0:04:40.1]} 13. cxd3 {[%clk 0:04:24.6]} 13... Bxb2
{[%clk 0:04:38.1]} 14. Rb1 {[%clk 0:04:23.2]} 14... Bc3+ {[%clk 0:04:37.6]} 15.
Kd1 {[%clk 0:04:21.3]} 15... b6 {[%clk 0:04:37.5]} 16. Rb3 {[%clk 0:04:19.7]}
16... Bg7 {[%clk 0:04:35.6]} 17. Ne2 {[%clk 0:04:17.4]} 17... d5 {[%clk
0:04:35.1]} 18. Nf4 {[%clk 0:04:15.8]} 18... dxe4 {[%clk 0:04:34.1]} 19. fxe4
{[%clk 0:04:11.7]} 19... Be6 {[%clk 0:04:31.3]} 20. Rc3 {[%clk 0:04:07.1]} 20...
Bxa2 {[%clk 0:04:27.7]} 21. Kd2 {[%clk 0:04:05.9]} 21... Rfc8 {[%clk 0:04:25.4]}
22. Rhc1 {[%clk 0:04:01]} 22... Bxc3+ {[%clk 0:04:20]} 0-1

[Event "Live Chess"]
[Site "Chess.com"]
[Date "2023.05.21"]
[Round "-"]
[White "wot-not"]
[Black "Hacker_2009"]
[Result "0-1"]
[WhiteElo "1540"]
[BlackElo "1929"]
[TimeControl "300"]
[EndTime "5:00:44 PDT"]
[Termination "Hacker_2009 won by resignation"]

1. d4 {[%clk 0:04:54.8]} 1... Nf6 {[%clk 0:04:58.1]} 2. c4 {[%clk 0:04:45.4]}
2... e6 {[%clk 0:04:54.8]} 3. Nc3 {[%clk 0:04:44.6]} 3... d5 {[%clk 0:04:51.4]}
4. Nf3 {[%clk 0:04:41.7]} 4... Be7 {[%clk 0:04:49.8]} 5. Bg5 {[%clk 0:04:40.7]}
5... O-O {[%clk 0:04:47.9]} 6. e3 {[%clk 0:04:40]} 6... b6 {[%clk 0:04:43.8]} 7.
Be2 {[%clk 0:04:28.5]} 7... Bb7 {[%clk 0:04:39.3]} 8. Bxf6 {[%clk 0:04:27.4]}
8... Bxf6 {[%clk 0:04:36.7]} 9. cxd5 {[%clk 0:04:27.1]} 9... exd5 {[%clk
0:04:34.6]} 10. O-O {[%clk 0:04:25.3]} 10... Nd7 {[%clk 0:04:21.6]} 11. b4
{[%clk 0:04:21.7]} 11... c5 {[%clk 0:04:18.7]} 12. bxc5 {[%clk 0:04:20.6]} 12...
bxc5 {[%clk 0:04:17.4]} 13. Rb1 {[%clk 0:04:08.5]} 13... Rb8 {[%clk 0:04:15.7]}
14. Bb5 {[%clk 0:03:55.5]} 14... cxd4 {[%clk 0:04:12.2]} 15. Nxd4 {[%clk
0:03:51.6]} 15... Nb6 {[%clk 0:04:10.9]} 16. Bd3 {[%clk 0:03:35.6]} 16... Bxd4
{[%clk 0:04:06.9]} 17. exd4 {[%clk 0:03:33.8]} 17... Qf6 {[%clk 0:04:06.3]} 18.
Ne2 {[%clk 0:03:04.4]} 18... Rfc8 {[%clk 0:04:02.9]} 19. Rc1 {[%clk 0:02:58.9]}
19... Nc4 {[%clk 0:03:52.5]} 20. Bxc4 {[%clk 0:02:50]} 20... dxc4 {[%clk
0:03:49.6]} 21. Nc3 {[%clk 0:02:33.9]} 21... Qg6 {[%clk 0:03:45.4]} 22. d5
{[%clk 0:02:32.7]} 22... Rd8 {[%clk 0:03:42.6]} 23. Qd4 {[%clk 0:02:10.2]} 23...
Ba6 {[%clk 0:03:33.6]} 24. Qxa7 {[%clk 0:01:53.1]} 24... Qb6 {[%clk 0:03:23.1]}
25. Qxb6 {[%clk 0:01:51.9]} 25... Rxb6 {[%clk 0:03:21.7]} 26. Rfe1 {[%clk
0:01:46.8]} 26... h6 {[%clk 0:03:18.3]} 27. Re7 {[%clk 0:01:45.5]} 27... Rb2
{[%clk 0:03:07.8]} 28. h3 {[%clk 0:01:26.7]} 28... Bb7 {[%clk 0:03:05.8]} 29.
Nd1 {[%clk 0:01:05.9]} 29... Rb5 {[%clk 0:03:01.4]} 30. Rxc4 {[%clk 0:00:56.8]}
30... Bxd5 {[%clk 0:02:53.4]} 31. Rc1 {[%clk 0:00:41]} 31... Bxa2 {[%clk
0:02:51.5]} 32. Ne3 {[%clk 0:00:34.4]} 32... Be6 {[%clk 0:02:50.3]} 33. Rcc7
{[%clk 0:00:24.4]} 33... Rb2 {[%clk 0:02:45.2]} 34. f3 {[%clk 0:00:22.3]} 34...
Rd3 {[%clk 0:02:37.5]} 35. Ng4 {[%clk 0:00:21.4]} 35... Rdd2 {[%clk 0:02:32.3]}
36. Ne5 {[%clk 0:00:20.5]} 36... Rxg2+ {[%clk 0:02:30.4]} 37. Kf1 {[%clk
0:00:19.9]} 37... Rbf2+ {[%clk 0:02:27.1]} 38. Ke1 {[%clk 0:00:18.8]} 38... Re2+
{[%clk 0:02:26.7]} 0-1

[Event "Live Chess"]
[Site "Chess.com"]
[Date "2023.05.21"]
[Round "-"]
[White "ElectricFalcon"]
[Black "chessfiction"]
[Result "0-1"]
[WhiteElo "1070"]
[BlackElo "2312"]
[TimeControl "300"]
[EndTime "5:00:50 PDT"]
[Termination "chessfiction won by checkmate"]

1. d4 {[%clk 0:04:51.3]} 1... d5 {[%clk 0:04:58.5]} 2. c4 {[%clk 0:04:50.5]}
2... e5 {[%clk 0:04:57.4]} 3. e3 {[%clk 0:04:49.3]} 3... e4 {[%clk 0:04:55.7]}
4. Nc3 {[%clk 0:04:48.3]} 4... c6 {[%clk 0:04:53.9]} 5. cxd5 {[%clk 0:04:47.4]}
5... cxd5 {[%clk 0:04:53.8]} 6. Bb5+ {[%clk 0:04:45.5]} 6... Nc6 {[%clk
0:04:52.4]} 7. Nge2 {[%clk 0:04:42.8]} 7... Bd6 {[%clk 0:04:51.1]} 8. O-O {[%clk
0:04:41.4]} 8... Nf6 {[%clk 0:04:49.8]} 9. Qb3 {[%clk 0:04:32.1]} 9... Bxh2+
{[%clk 0:04:47.9]} 10. Kh1 {[%clk 0:04:24]} 10... Ng4 {[%clk 0:04:47.8]} 11. Ng3
{[%clk 0:04:12.7]} 11... Qh4 {[%clk 0:04:43.4]} 12. Rd1 {[%clk 0:03:59.8]} 12...
Nxf2# {[%clk 0:04:39.3]} 0-1

[Event "Live Chess"]
[Site "Chess.com"]
[Date "2023.05.21"]
[Round "-"]
[White "MJMykh"]
[Black "Missedidea"]
[Result "1/2-1/2"]
[WhiteElo "1173"]
[BlackElo "1791"]
[TimeControl "300"]
[EndTime "5:00:52 PDT"]
[Termination "Game drawn by stalemate"]

1. e4 {[%clk 0:04:58]} 1... c5 {[%clk 0:04:59]} 2. Nf3 {[%clk 0:04:56.8]} 2...
d6 {[%clk 0:04:58.1]} 3. h3 {[%clk 0:04:54.9]} 3... g6 {[%clk 0:04:56.1]} 4. Nc3
{[%clk 0:04:54.4]} 4... Bg7 {[%clk 0:04:54.9]} 5. Bb5+ {[%clk 0:04:52.7]} 5...
Bd7 {[%clk 0:04:53.5]} 6. Bxd7+ {[%clk 0:04:52.1]} 6... Qxd7 {[%clk 0:04:52.4]}
7. O-O {[%clk 0:04:51.7]} 7... Nc6 {[%clk 0:04:50.8]} 8. a3 {[%clk 0:04:50.1]}
8... e5 {[%clk 0:04:48.1]} 9. d3 {[%clk 0:04:48.3]} 9... Nge7 {[%clk 0:04:45.1]}
10. Bg5 {[%clk 0:04:47.5]} 10... O-O {[%clk 0:04:42.9]} 11. Bxe7 {[%clk
0:04:47]} 11... Qxe7 {[%clk 0:04:40.8]} 12. Qd2 {[%clk 0:04:46.5]} 12... f5
{[%clk 0:04:34.7]} 13. exf5 {[%clk 0:04:45.2]} 13... gxf5 {[%clk 0:04:32.9]} 14.
Qg5 {[%clk 0:04:36]} 14... Qd7 {[%clk 0:04:29.5]} 15. Qd2 {[%clk 0:04:28.9]}
15... Nd4 {[%clk 0:04:25.1]} 16. Nxd4 {[%clk 0:04:27.1]} 16... cxd4 {[%clk
0:04:23.8]} 17. Nd5 {[%clk 0:04:26]} 17... Rae8 {[%clk 0:04:20.2]} 18. Qa5
{[%clk 0:04:14.4]} 18... b6 {[%clk 0:04:16.5]} 19. Qb4 {[%clk 0:04:07.8]} 19...
Qc6 {[%clk 0:04:10.4]} 20. Qc4 {[%clk 0:03:58.6]} 20... Qxc4 {[%clk 0:04:08.5]}
21. dxc4 {[%clk 0:03:57.2]} 21... e4 {[%clk 0:04:06.4]} 22. c3 {[%clk
0:03:51.2]} 22... f4 {[%clk 0:03:57.9]} 23. cxd4 {[%clk 0:03:50.1]} 23... Bxd4
{[%clk 0:03:55.4]} 24. Rab1 {[%clk 0:03:48.6]} 24... Rf5 {[%clk 0:03:47.9]} 25.
Nb4 {[%clk 0:03:44.4]} 25... Bc5 {[%clk 0:03:39.9]} 26. Nc6 {[%clk 0:03:41.3]}
26... e3 {[%clk 0:03:37.3]} 27. fxe3 {[%clk 0:03:37.1]} 27... Bxe3+ {[%clk
0:03:35.3]} 28. Kh2 {[%clk 0:03:36.7]} 28... Rc5 {[%clk 0:03:31.2]} 29. Nxa7
{[%clk 0:03:33.5]} 29... Rxc4 {[%clk 0:03:29.2]} 30. Nb5 {[%clk 0:03:32.4]}
30... Rc2 {[%clk 0:03:27]} 31. Nxd6 {[%clk 0:03:25]} 31... Rd8 {[%clk
0:03:24.9]} 32. Nf5 {[%clk 0:03:21.6]} 32... Rdd2 {[%clk 0:03:21.7]} 33. Nxe3
{[%clk 0:03:20]} 33... fxe3 {[%clk 0:03:19.9]} 34. Rg1 {[%clk 0:03:14.8]} 34...
Rxb2 {[%clk 0:03:17.8]} 35. Rxb2 {[%clk 0:03:13.7]} 35... Rxb2 {[%clk
0:03:16.2]} 36. Re1 {[%clk 0:03:13.2]} 36... Rb3 {[%clk 0:03:13.8]} 37. Kg1
{[%clk 0:03:09.8]} 37... Rxa3 {[%clk 0:03:11.7]} 38. Kf1 {[%clk 0:03:09.6]}
38... Kf7 {[%clk 0:03:10.6]} 39. Ke2 {[%clk 0:03:08.6]} 39... Ke6 {[%clk
0:03:09.5]} 40. Kf3 {[%clk 0:03:07.9]} 40... Kf5 {[%clk 0:03:08]} 41. Rxe3
{[%clk 0:03:06.9]} 41... Rxe3+ {[%clk 0:03:06]} 42. Kxe3 {[%clk 0:03:06.8]}
42... b5 {[%clk 0:03:04.9]} 43. Kd3 {[%clk 0:03:06.2]} 43... Kf4 {[%clk
0:03:04]} 44. Ke2 {[%clk 0:03:04.7]} 44... b4 {[%clk 0:03:02.5]} 45. Kd3 {[%clk
0:02:59.1]} 45... Kg3 {[%clk 0:03:00.8]} 46. Kc4 {[%clk 0:02:58.6]} 46... Kxg2
{[%clk 0:03:00]} 47. Kxb4 {[%clk 0:02:58.1]} 47... Kxh3 {[%clk 0:02:59.2]} 48.
Kc3 {[%clk 0:02:58]} 48... Kg3 {[%clk 0:02:57.7]} 49. Kd2 {[%clk 0:02:57.3]}
49... h5 {[%clk 0:02:57]} 50. Ke2 {[%clk 0:02:56.8]} 50... h4 {[%clk 0:02:55.5]}
51. Kf1 {[%clk 0:02:55.9]} 51... Kh2 {[%clk 0:02:53.4]} 52. Kf2 {[%clk
0:02:54.7]} 52... h3 {[%clk 0:02:52.7]} 53. Kf1 {[%clk 0:02:53.7]} 53... Kg3
{[%clk 0:02:50.7]} 54. Kg1 {[%clk 0:02:52.9]} 54... h2+ {[%clk 0:02:49.8]} 55.
Kh1 {[%clk 0:02:51.7]} 55... Kh3 {[%clk 0:02:48.9]} 1/2-1/2

[Event "Live Chess"]
[Site "Chess.com"]
[Date "2023.05.21"]
[Round "-"]
[White "Biranidun"]
[Black "BJAW87"]
[Result "1-0"]
[WhiteElo "2517"]
[BlackElo "1449"]
[TimeControl "300"]
[EndTime "5:00:55 PDT"]
[Termination "Biranidun won by checkmate"]

1. e4 {[%clk 0:04:58.9]} 1... c6 {[%clk 0:04:59]} 2. d4 {[%clk 0:04:58.1]} 2...
d5 {[%clk 0:04:58.2]} 3. e5 {[%clk 0:04:57.4]} 3... Bf5 {[%clk 0:04:57.2]} 4.
Nf3 {[%clk 0:04:56.7]} 4... e6 {[%clk 0:04:55.9]} 5. Be2 {[%clk 0:04:56.4]} 5...
c5 {[%clk 0:04:54.2]} 6. Be3 {[%clk 0:04:55.6]} 6... Qb6 {[%clk 0:04:50.9]} 7.
Nc3 {[%clk 0:04:54.1]} 7... Qxb2 {[%clk 0:04:41.6]} 8. Qb1 {[%clk 0:04:45.7]}
8... Qxc3+ {[%clk 0:04:36.6]} 9. Bd2 {[%clk 0:04:44.7]} 9... Qa3 {[%clk
0:04:24.4]} 10. Qxb7 {[%clk 0:04:43.2]} 10... Nd7 {[%clk 0:04:02.3]} 11. Qxa8+
{[%clk 0:04:41.4]} 11... Ke7 {[%clk 0:04:02.2]} 12. Bb5 {[%clk 0:04:35]} 12...
Bxc2 {[%clk 0:03:30.9]} 13. Qb7 {[%clk 0:04:29.3]} 13... Ba4 {[%clk 0:03:20.3]}
14. Qxd7# {[%clk 0:04:27.8]} 1-0

[Event "Live Chess"]
[Site "Chess.com"]
[Date "2023.05.21"]
[Round "-"]
[White "JoshMcK"]
[Black "Reggie016"]
[Result "1-0"]
[WhiteElo "1545"]
[BlackElo "1099"]
[TimeControl "300"]
[EndTime "5:01:02 PDT"]
[Termination "JoshMcK won by resignation"]

1. e4 {[%clk 0:04:59]} 1... e6 {[%clk 0:04:59.4]} 2. d4 {[%clk 0:04:57.5]} 2...
d5 {[%clk 0:04:59]} 3. Nc3 {[%clk 0:04:54.5]} 3... Bb4 {[%clk 0:04:57.7]} 4. e5
{[%clk 0:04:52.9]} 4... Ne7 {[%clk 0:04:56.8]} 5. a3 {[%clk 0:04:52.2]} 5...
Bxc3+ {[%clk 0:04:54.7]} 6. bxc3 {[%clk 0:04:52.1]} 6... O-O {[%clk 0:04:53.4]}
7. Qg4 {[%clk 0:04:48]} 7... Ng6 {[%clk 0:04:47.4]} 8. h4 {[%clk 0:04:44.7]}
8... f6 {[%clk 0:04:46.7]} 9. exf6 {[%clk 0:04:42.9]} 9... Qxf6 {[%clk
0:04:45.4]} 10. Nf3 {[%clk 0:04:40.8]} 10... e5 {[%clk 0:04:41.3]} 11. Qg5
{[%clk 0:04:31.1]} 11... e4 {[%clk 0:04:30.8]} 12. Qxd5+ {[%clk 0:04:21.4]}
12... Kh8 {[%clk 0:04:28.6]} 13. Qxe4 {[%clk 0:04:19.1]} 13... Bf5 {[%clk
0:04:26.3]} 14. Qxb7 {[%clk 0:04:13.1]} 14... Nc6 {[%clk 0:04:25.5]} 15. Be3
{[%clk 0:04:08.8]} 15... Bxc2 {[%clk 0:04:13.9]} 16. Qxc7 {[%clk 0:03:59.1]}
16... a6 {[%clk 0:03:52.9]} 17. h5 {[%clk 0:03:44.3]} 17... Rac8 {[%clk
0:03:50.6]} 18. Qg3 {[%clk 0:03:37.6]} 18... Nge7 {[%clk 0:03:38]} 19. h6 {[%clk
0:03:24.4]} 19... g6 {[%clk 0:03:31.7]} 20. Bxa6 {[%clk 0:03:21.4]} 20... Nf5
{[%clk 0:03:25.9]} 21. Qg5 {[%clk 0:02:58.6]} 21... Qe6 {[%clk 0:03:19.9]} 22.
Bxc8 {[%clk 0:02:44.5]} 22... Qxc8 {[%clk 0:03:15.2]} 23. O-O {[%clk 0:02:41.7]}
1-0

[Event "Live Chess"]
[Site "Chess.com"]
[Date "2023.05.21"]
[Round "-"]
[White "LiamBellwood"]
[Black "sup3rm0nk3y"]
[Result "0-1"]
[WhiteElo "1894"]
[BlackElo "1348"]
[TimeControl "300"]
[EndTime "5:01:03 PDT"]
[Termination "sup3rm0nk3y won by checkmate"]

1. d4 {[%clk 0:04:59.4]} 1... d5 {[%clk 0:04:58.8]} 2. Nc3 {[%clk 0:04:57.5]}
2... Bf5 {[%clk 0:04:57]} 3. e3 {[%clk 0:04:56]} 3... e6 {[%clk 0:04:56.2]} 4.
f3 {[%clk 0:04:55.2]} 4... Bb4 {[%clk 0:04:52.3]} 5. Bd3 {[%clk 0:04:54]} 5...
Bxd3 {[%clk 0:04:50.7]} 6. Qxd3 {[%clk 0:04:53.9]} 6... c5 {[%clk 0:04:45.5]} 7.
a3 {[%clk 0:04:52]} 7... c4 {[%clk 0:04:41.6]} 8. Qd1 {[%clk 0:04:46.2]} 8...
Bd6 {[%clk 0:04:40.2]} 9. e4 {[%clk 0:04:43.9]} 9... Ne7 {[%clk 0:04:33.7]} 10.
Bg5 {[%clk 0:04:32.9]} 10... Nbc6 {[%clk 0:04:31.8]} 11. Nge2 {[%clk 0:04:26.9]}
11... O-O {[%clk 0:04:29.9]} 12. O-O {[%clk 0:04:20.2]} 12... f6 {[%clk
0:04:28.6]} 13. Bh4 {[%clk 0:04:18.4]} 13... dxe4 {[%clk 0:04:17.6]} 14. fxe4
{[%clk 0:04:15]} 14... a6 {[%clk 0:04:16.2]} 15. d5 {[%clk 0:03:57.9]} 15...
exd5 {[%clk 0:04:14]} 16. exd5 {[%clk 0:03:57.8]} 16... Ne5 {[%clk 0:03:56.4]}
17. Nf4 {[%clk 0:03:48.6]} 17... N5g6 {[%clk 0:03:50.4]} 18. Ne6 {[%clk
0:03:46.7]} 18... Qb8 {[%clk 0:03:40.4]} 19. Nxf8 {[%clk 0:03:23.6]} 19... Bxh2+
{[%clk 0:03:38.6]} 20. Kh1 {[%clk 0:03:22.7]} 20... Nxh4 {[%clk 0:03:36.2]} 21.
Qh5 {[%clk 0:03:18.8]} 21... Qg3 {[%clk 0:03:05.2]} 22. Ne4 {[%clk 0:03:06.3]}
22... Qxg2# {[%clk 0:02:58.8]} 0-1

[Event "Live Chess"]
[Site "Chess.com"]
[Date "2023.05.21"]
[Round "-"]
[White "LiamClery2020"]
[Black "ExIsambard"]
[Result "0-1"]
[WhiteElo "1988"]
[BlackElo "1907"]
[TimeControl "300"]
[EndTime "5:01:05 PDT"]
[Termination "ExIsambard won by resignation"]

1. e4 {[%clk 0:04:59.7]} 1... Nc6 {[%clk 0:04:58.9]} 2. Nc3 {[%clk 0:04:55.6]}
2... e5 {[%clk 0:04:57.6]} 3. Bc4 {[%clk 0:04:54.9]} 3... Bc5 {[%clk 0:04:56.2]}
4. Qg4 {[%clk 0:04:53.4]} 4... g6 {[%clk 0:04:51.7]} 5. Qg3 {[%clk 0:04:52.3]}
5... Nge7 {[%clk 0:04:50]} 6. Nf3 {[%clk 0:04:51.4]} 6... d6 {[%clk 0:04:48.8]}
7. d3 {[%clk 0:04:50.5]} 7... Na5 {[%clk 0:04:43]} 8. Bh6 {[%clk 0:04:48.2]}
8... Nxc4 {[%clk 0:04:40]} 9. dxc4 {[%clk 0:04:48.1]} 9... Be6 {[%clk
0:04:36.6]} 10. Nd5 {[%clk 0:04:47.1]} 10... Bxd5 {[%clk 0:04:33.7]} 11. cxd5
{[%clk 0:04:46]} 11... c6 {[%clk 0:04:32.3]} 12. dxc6 {[%clk 0:04:42.8]} 12...
Nxc6 {[%clk 0:04:24.1]} 13. O-O {[%clk 0:04:41.6]} 13... Qb6 {[%clk 0:04:21.9]}
14. Rad1 {[%clk 0:04:39.2]} 14... O-O-O {[%clk 0:04:20.2]} 15. b3 {[%clk
0:04:36.1]} 15... Kb8 {[%clk 0:04:18.8]} 16. Nd2 {[%clk 0:04:33.2]} 16... Nd4
{[%clk 0:04:13]} 17. Qd3 {[%clk 0:04:32]} 17... f5 {[%clk 0:04:11.4]} 18. Kh1
{[%clk 0:04:27.1]} 18... f4 {[%clk 0:04:04.8]} 19. Nc4 {[%clk 0:04:19.9]} 19...
Qc6 {[%clk 0:04:01.9]} 20. b4 {[%clk 0:04:17]} 20... Bb6 {[%clk 0:04:00.3]} 21.
b5 {[%clk 0:04:14.7]} 21... Qd7 {[%clk 0:03:56.4]} 22. a4 {[%clk 0:04:12.4]}
22... Bc5 {[%clk 0:03:49.2]} 23. Rb1 {[%clk 0:04:09.3]} 23... Rhg8 {[%clk
0:03:44.1]} 24. Bg5 {[%clk 0:04:07.7]} 24... Rc8 {[%clk 0:03:40.3]} 25. b6
{[%clk 0:04:04]} 25... a6 {[%clk 0:03:32.6]} 26. c3 {[%clk 0:03:59.8]} 26... Ne6
{[%clk 0:03:30.6]} 27. Bf6 {[%clk 0:03:49.1]} 27... Qf7 {[%clk 0:03:18.6]} 28.
Nxd6 {[%clk 0:03:46.8]} 28... Qxf6 {[%clk 0:03:17]} 29. Nxc8 {[%clk 0:03:44.9]}
29... Rxc8 {[%clk 0:03:16.9]} 30. Rfd1 {[%clk 0:03:34]} 30... Ng5 {[%clk
0:03:06.6]} 31. Qd7 {[%clk 0:03:28.1]} 31... f3 {[%clk 0:03:01.3]} 32. g3 {[%clk
0:03:25.1]} 32... Nxe4 {[%clk 0:02:59.5]} 33. Rb2 {[%clk 0:03:18.8]} 33... Bxf2
{[%clk 0:02:54.4]} 34. Rbd2 {[%clk 0:03:10]} 34... Bc5 {[%clk 0:02:52.6]} 35.
Qd5 {[%clk 0:03:02.6]} 35... Qf5 {[%clk 0:02:33.5]} 36. Rd4 {[%clk 0:02:45.9]}
36... Nf2+ {[%clk 0:02:27.6]} 0-1

[Event "Live Chess"]
[Site "Chess.com"]
[Date "2023.05.21"]
[Round "-"]
[White "zdanevych"]
[Black "Brooms1989"]
[Result "0-1"]
[WhiteElo "1533"]
[BlackElo "1160"]
[TimeControl "300"]
[EndTime "5:01:08 PDT"]
[Termination "Brooms1989 won by resignation"]

1. d4 {[%clk 0:04:59.4]} 1... Nf6 {[%clk 0:04:55.8]} 2. c4 {[%clk 0:04:58.8]}
2... g6 {[%clk 0:04:53.3]} 3. Nc3 {[%clk 0:04:58.3]} 3... Bg7 {[%clk 0:04:52.1]}
4. e4 {[%clk 0:04:57.7]} 4... d6 {[%clk 0:04:51.5]} 5. h3 {[%clk 0:04:56.7]}
5... O-O {[%clk 0:04:47.7]} 6. Nf3 {[%clk 0:04:55.6]} 6... Nbd7 {[%clk
0:04:42.4]} 7. Bg5 {[%clk 0:04:52.8]} 7... e5 {[%clk 0:04:40.1]} 8. dxe5 {[%clk
0:04:47.5]} 8... dxe5 {[%clk 0:04:38.4]} 9. Nd5 {[%clk 0:04:37.5]} 9... c6
{[%clk 0:04:30.9]} 10. Nxf6+ {[%clk 0:04:36.3]} 10... Bxf6 {[%clk 0:04:29.8]}
11. Bxf6 {[%clk 0:04:33.9]} 11... Qxf6 {[%clk 0:04:28.6]} 12. Be2 {[%clk
0:04:27.8]} 12... Nb6 {[%clk 0:04:09.7]} 13. O-O {[%clk 0:04:22.9]} 13... Be6
{[%clk 0:04:06.6]} 14. b3 {[%clk 0:04:21]} 14... Rad8 {[%clk 0:04:01.9]} 15. Qc2
{[%clk 0:04:18.8]} 15... Qg7 {[%clk 0:03:53.9]} 16. Qc3 {[%clk 0:04:06]} 16...
f6 {[%clk 0:03:46.3]} 17. Rad1 {[%clk 0:04:02.6]} 17... Rd7 {[%clk 0:03:29.9]}
18. Rxd7 {[%clk 0:03:48.2]} 18... Bxd7 {[%clk 0:03:29.8]} 19. Rd1 {[%clk
0:03:44.4]} 19... Rd8 {[%clk 0:03:28.5]} 20. c5 {[%clk 0:03:27.5]} 20... Nc8
{[%clk 0:03:26.1]} 21. Bc4+ {[%clk 0:03:20.5]} 21... Kh8 {[%clk 0:03:21.4]} 22.
Be6 {[%clk 0:03:16]} 22... Qe7 {[%clk 0:03:13.2]} 23. Qd3 {[%clk 0:03:09.9]}
23... Qxe6 {[%clk 0:02:52.8]} 24. Qxd7 {[%clk 0:03:02.2]} 24... Rxd7 {[%clk
0:02:50.7]} 0-1

[Event "Live Chess"]
[Site "Chess.com"]
[Date "2023.05.21"]
[Round "-"]
[White "jbooth"]
[Black "Dhaydon19"]
[Result "0-1"]
[WhiteElo "1701"]
[BlackElo "2701"]
[TimeControl "300"]
[EndTime "5:01:29 PDT"]
[Termination "Dhaydon19 won by resignation"]

1. e4 {[%clk 0:04:57.3]} 1... c6 {[%clk 0:04:59.4]} 2. d4 {[%clk 0:04:54.1]}
2... d5 {[%clk 0:04:59]} 3. Nc3 {[%clk 0:04:52]} 3... dxe4 {[%clk 0:04:57.8]} 4.
Nxe4 {[%clk 0:04:51.6]} 4... Nf6 {[%clk 0:04:56.4]} 5. Nxf6+ {[%clk 0:04:50.2]}
5... exf6 {[%clk 0:04:55.7]} 6. c3 {[%clk 0:04:47.4]} 6... Bd6 {[%clk
0:04:54.6]} 7. Bd3 {[%clk 0:04:46]} 7... O-O {[%clk 0:04:53.8]} 8. Ne2 {[%clk
0:04:44.9]} 8... Re8 {[%clk 0:04:53.1]} 9. O-O {[%clk 0:04:44.1]} 9... Nd7
{[%clk 0:04:52.1]} 10. Be3 {[%clk 0:04:41.5]} 10... Nf8 {[%clk 0:04:51]} 11. Qd2
{[%clk 0:04:38.8]} 11... Ng6 {[%clk 0:04:49.7]} 12. f4 {[%clk 0:04:29.6]} 12...
Qe7 {[%clk 0:04:46.9]} 13. Rf3 {[%clk 0:04:24.7]} 13... Bg4 {[%clk 0:04:44.6]}
14. Rg3 {[%clk 0:04:23.1]} 14... Bxe2 {[%clk 0:04:43.4]} 15. Qxe2 {[%clk
0:04:21.1]} 15... Bxf4 {[%clk 0:04:39.5]} 0-1

[Event "Live Chess"]
[Site "Chess.com"]
[Date "2023.05.21"]
[Round "-"]
[White "AMCWAML"]
[Black "worldchessleaguelive"]
[Result "1-0"]
[WhiteElo "2330"]
[BlackElo "1360"]
[TimeControl "300"]
[EndTime "5:01:50 PDT"]
[Termination "AMCWAML won on time"]

1. e4 {[%clk 0:04:56.3]} 1... d5 {[%clk 0:04:56.9]} 2. exd5 {[%clk 0:04:51.3]}
2... Qxd5 {[%clk 0:04:50.8]} 3. Nf3 {[%clk 0:04:43.3]} 3... Nc6 {[%clk 0:04:45]}
4. Nc3 {[%clk 0:04:40.8]} 4... Qd8 {[%clk 0:04:44]} 5. Bb5 {[%clk 0:04:30.9]}
5... Bd7 {[%clk 0:04:42]} 6. O-O {[%clk 0:04:29.8]} 6... a6 {[%clk 0:04:28.6]}
7. Be2 {[%clk 0:04:28.6]} 7... e6 {[%clk 0:04:26.6]} 8. d4 {[%clk 0:04:27.3]}
8... Nf6 {[%clk 0:04:25]} 9. Re1 {[%clk 0:04:23.7]} 9... Be7 {[%clk 0:04:24.1]}
10. a3 {[%clk 0:04:21]} 10... O-O {[%clk 0:04:22.5]} 11. h3 {[%clk 0:04:16.5]}
11... Nd5 {[%clk 0:04:21.4]} 12. Ne4 {[%clk 0:04:14.5]} 12... Nf6 {[%clk
0:04:14]} 13. Ng3 {[%clk 0:04:10.7]} 13... Bd6 {[%clk 0:04:09.4]} 14. Nf1 {[%clk
0:04:05.9]} 14... h6 {[%clk 0:04:06.7]} 15. c4 {[%clk 0:04:02.7]} 15... b6
{[%clk 0:03:49.1]} 16. Bd3 {[%clk 0:03:53.1]} 16... Rb8 {[%clk 0:03:17.9]} 17.
b4 {[%clk 0:03:46.7]} 17... Na7 {[%clk 0:03:14.1]} 18. Bb2 {[%clk 0:03:45.6]}
18... b5 {[%clk 0:03:12.5]} 19. c5 {[%clk 0:03:33.8]} 19... Be7 {[%clk
0:03:11.3]} 20. Qe2 {[%clk 0:03:25.3]} 20... Bc6 {[%clk 0:03:05.2]} 21. Ne5
{[%clk 0:03:21.7]} 21... Ba8 {[%clk 0:02:58.8]} 22. Ng3 {[%clk 0:03:05.5]} 22...
Qd5 {[%clk 0:02:54.5]} 23. f3 {[%clk 0:03:05]} 23... Nc6 {[%clk 0:02:48.2]} 24.
Rad1 {[%clk 0:02:34.3]} 24... Rfd8 {[%clk 0:02:32.9]} 25. Be4 {[%clk 0:02:24.4]}
25... Nxe4 {[%clk 0:02:28.5]} 26. fxe4 {[%clk 0:02:23.2]} 26... Qb3 {[%clk
0:02:13]} 27. Rd3 {[%clk 0:01:39.9]} 27... Qa4 {[%clk 0:02:02.5]} 28. Nxc6
{[%clk 0:01:03.2]} 28... Bxc6 {[%clk 0:01:59.2]} 29. d5 {[%clk 0:01:01.8]} 29...
Bd7 {[%clk 0:01:48.6]} 30. Nh5 {[%clk 0:01:00]} 30... g6 {[%clk 0:01:35.7]} 31.
Rg3 {[%clk 0:00:55.3]} 31... Bg5 {[%clk 0:01:33.5]} 32. Nf6+ {[%clk 0:00:44.5]}
32... Bxf6 {[%clk 0:01:28.4]} 33. Bxf6 {[%clk 0:00:44.4]} 33... Re8 {[%clk
0:01:21.6]} 34. Qh5 {[%clk 0:00:42.2]} 34... Kh7 {[%clk 0:01:13.2]} 35. Qf3
{[%clk 0:00:31.1]} 35... exd5 {[%clk 0:01:10.6]} 36. e5 {[%clk 0:00:29.4]} 36...
Be6 {[%clk 0:00:47.4]} 37. Qe3 {[%clk 0:00:26.5]} 37... Qc2 {[%clk 0:00:42.5]}
38. Re2 {[%clk 0:00:24.8]} 38... Qb1+ {[%clk 0:00:37.7]} 39. Kh2 {[%clk
0:00:23.9]} 39... Qf5 {[%clk 0:00:35.7]} 40. Rf3 {[%clk 0:00:22.9]} 40... Qh5
{[%clk 0:00:27.7]} 41. Rd2 {[%clk 0:00:22.1]} 41... g5 {[%clk 0:00:17.2]} 42.
Rd4 {[%clk 0:00:21.3]} 42... Qg6 {[%clk 0:00:16.1]} 43. Qd3 {[%clk 0:00:20]}
43... Qxd3 {[%clk 0:00:14.5]} 44. Rdxd3 {[%clk 0:00:19.1]} 44... Kg6 {[%clk
0:00:13.8]} 45. Rd2 {[%clk 0:00:18.6]} 45... Bf5 {[%clk 0:00:13]} 46. g4 {[%clk
0:00:17.8]} 46... Be4 {[%clk 0:00:12.1]} 47. Rf1 {[%clk 0:00:16.3]} 47... Re6
{[%clk 0:00:11.4]} 48. Rdf2 {[%clk 0:00:15.7]} 48... Rbe8 {[%clk 0:00:10.3]} 49.
Bg7 {[%clk 0:00:13.1]} 49... Rxe5 {[%clk 0:00:09.3]} 50. Rxf7 {[%clk 0:00:11.9]}
50... R5e7 {[%clk 0:00:05.2]} 51. R1f6+ {[%clk 0:00:11]} 1-0